Workbook

Sheet Instructivo
A1: CRITERIO DE PRIORIZACIÓN DE TRÁMITES ADMINISTRATIVOS
A2: Instructivo
A3: Consideraciones generales
A5: En las hojas “COSTO DE ADMINISTRACIÓN PÚBLICA”y “RESUMEN” para añadir más trámites y que apliquen las fórmulas, se deberá seleccionar la primera fila y copiarla una por cada trámite de la entidad
A7: Todas las hojas tienen columnas de color celeste, en las cuales NO deben ingresar valores ya que contienen fórmulas.
A8: Para la carga en GOB.EC. La institución debe recordar que el peso máximo del archivo es de 2 MB.
A9: Esquema de puntuación
A10: Para priorizar un trámite, se realizará un análisis de criterios básicos y adicionales basado en información que disponen las instituciones sujetas a esta norma técnica. Cada criterio será puntuado según los lineamientos presentes en esta norma.
A11: a) Demanda Anual
A12: Considerará el volumen o frecuencia de las solicitudes que ingresan al año a cada institución para la gestión de un trámite en particular.
A13: La identificación del volumen anual de los trámites se realizará a través de sus registros de transacciones y/o el número de visitas de consulta de información realizadas a través de páginas web institucionales.
A14: Para realizar el registro realice lo siguiente:
A15: 1.- Seleccione la hoja DEMANDA ANUAL
A16: 2.- Ingrese los trámites de la institución registrando el identificador y nombre en las columnas respectivas.
A17: 3.- Para cada trámite debe especificar en la columna DEMANDA ANUAL el volumen o frecuencia anual, de acuerdo a lo mencionado anteriormente.
A18: 4.- Una vez terminado el llenado solicitado presione el botón PUNTUACIÓN, se ordenara de menor a mayor.
A19: 5.- Usted visualizará el ordenamiento de los trámites ingresados de acuerdo al número de volumen o frecuencia anual.
A20: 6.- Así mismo, usted visualizará el puntaje obtenido en la columna PUNTUACIÓN de acuerdo al grupo obtenido por cada trámite de acuerdo al número de volumen o frecuencia anual cosiderando lo siguiente: ** Primer grupo (trámites con menor demanda no incluye los trámites con demanda 0 ) = 3 ** Segundo grupo (trámites con demanda intermedia) = 6 ** Tercer grupo (trámites con mayor demanda) = 10
A21: Cada vez que requiera actualizar el puntaje presionando el botón puntuación, debe verificar que la celda de la columna puntaje se encuentren vacías, es decir, se debe borrar cualquier valor de puntaje obtenido previamente.
A22: b) Volumen de quejas asociadas a un trámite:
A23: Considerará la cantidad de quejas recibidas en relación a un trámite durante un año. Estas quejas deberán estar documentadas en medios físicos y/o digitales.
A24: Para determinar la puntuación, se colocará en una tabla todos los trámites con sus correspondientes quejas ordenándose de menor a mayor. Se dividirá en 2 partes en los que cada grupo contenga la misma cantidad de trámites.
A25: Para realizar el registro realice lo siguiente:
A26: 1.- Seleccione la hoja VOLUMEN DE QUEJAS
A27: 2.- Ingrese los trámites de la institución registrando el identificador y nombre en las columnas respectivas. Si usted requiere de acuerdo al número de trámites copie filas adicionales que estén dentro del cuadro
A28: 3.- Para cada trámite debe especificar en la columna VOLUMEN QUEJAS el número de quejas anual, de acuerdo a lo mencionado anteriormente.
A29: 4.- Una vez terminado el llenado solicitado presione el botón PUNTUACIÓN.
A30: 5.- Usted visualizará el ordenamiento de los trámites ingresados de acuerdo al número de volumen o frecuencia anual.
A31: 6.- Así mismo, usted visualizará el puntaje obtenido en la columna PUNTUACIÓN de acuerdo al grupo obtenido por cada trámite de acuerdo al número de volumen o frecuencia anual cosiderando lo siguiente: La puntuación se basará en los siguientes grupos: ** Primer grupo (trámites con menor cantidad de quejas, no incluye los trámites con queja 0 ) = 4 ** Segundo grupo (trámites con mayor porcentaje de quejas) = 10
A32: El valor del volumen de quejas no debe ser superior al valor del volumen de la demana, no le permitirá registrar un valor.
A33: c) Costo para la administración pública:
A34: En cada trámite, basado en un caso estándar, se deberá estimar el costo incurrido en el costo de personal y recursos necesarios para su atención desde que el administrado entregó todos los requisitos hasta que la institución entregue el producto, respuesta o servicio requerido en el trámite. Se considerará:
A35: • Costo de personal:
A36: Costo del personal para atender el trámite, se excluyen actividades realizadas automáticamente o que dependen del administrado. El tiempo deberá considerar únicamente el tiempo efectivo de trabajo del personal, no debe considerar el tiempo de espera o de movimiento.
A37: • Costo de recursos:
A38: Se deberá considerar el costo directo en el que la institución debe incurrir para atender un trámite. Se debe considerar los insumos o materia prima necesaria u cualquier otro que la institución considere pertinente.
A39: Para realizar el registro realice lo siguiente:
A40: 1.- Seleccione la hoja COSTO ADMINISTRACIÓN PÚBLICA
A41: 2.- Ingrese los trámites de la institución registrando el identificador y nombre en las columnas respectivas. Si usted requiere de acuerdo al número de trámites copie filas adicionales que estén dentro del cuadro
A42: 3.- Para calcular el tiempo de las actividades, utilizar la hoja AUXILIAR COSTO ADMINISTRACIÓN donde deberá listar todas las actividades que realiza la institución en un caso estándar y asignar el tiempo mínimo que toma cada actvidad (en horas). El tiempo total de las actividades, deberá ingresar en la correspondiente celda de la hoja COSTO ADMINISTRACIÓN PÚBLICA
A43: 4.- En función de la información registrada en el paso 3, la matriz entregará el costo del personal
A44: 5.- Completar la columna "Costo recursos", en la cual ingresará el costo directo en el que incurre la institución para entregar el trámite. En este valor se considerarán los valores correspondientes a insumos y/o materia prima mínimos que se invierten por cada trámite (no se considera mano de obra)
A45: 6.- La columna "Costo para la adm. pública" mostrará el costto de este criterio para cada trámite
A46: 7,- Para que la fórmula funcione debe arrastrar hacia abajo al último de los támites ingresados, no copiar
A47: 7.- Una vez que disponga del Costo para la administración pública, presionar el botón "GENERAR".
A48: 8. Visualizar la hoja “RESUMEN DE COSTO AP” en la que va a encontrar copiada las celdas necesarias para el ordenamiento y puntuación de las mismas al presionar el botón “PUNTUACIÓN”
A50: d) Tiempo de respuesta:
A51: Considerará los tiempos que a las instituciones les toma dar respuesta a un trámite desde que reciben la solicitud del administrado hasta la finalización del mismo. Para la definición del tiempo se considerará un caso estándar.
A52: Para determinar la puntuación, se colocará en una tabla todos los trámites con el tiempo de respuesta, ordenándose de menor a mayor. Se dividirá en 4 grupos, en los que cada uno contenga la misma cantidad de trámites.
A53: Para realizar el registro realice lo siguiente:
A54: 1.- Seleccione la hoja TIEMPO DE RESPUESTA
A55: 2.- Ingrese los trámites de la institución registrando el identificador y nombre en las columnas respectivas. Si usted requiere de acuerdo al número de trámites copie filas adicionales que estén dentro del cuadro
A56: 3.- Para cada trámite debe especificar en la columna TIEMPO RESPUESTA el tiempo, de acuerdo a lo mencionado anteriormente.
A57: 4.- Una vez terminado el llenado solicitado presione el botón PUNTUACIÓN.
A58: 5.- Usted visualizará el ordenamiento de los trámites ingresados de acuerdo al número de volumen o frecuencia anual.
A59: 6.- Así mismo, usted visualizará el puntaje obtenido en la columna PUNTUACIÓN de acuerdo al grupo obtenido por cada trámite de acuerdo al número de volumen o frecuencia anual cosiderando lo siguiente: La puntuación considera lo siguiente: ** Primer grupo (menor o igual a 40 horas laboralres) = 0 ** Segundo grupo mayor 40 horas laboralres) = 30
A60: e) Canal de atención:
A61: Considerará los canales de atención a través de los cuales el administrado puede iniciar el trámite.
A62: Para realizar el registro realice lo siguiente:
A63: 1.- Seleccione la hoja CANAL ATENCIÓN
A64: 2.- Ingrese los trámites de la institución registrando el identificador y nombre en las columnas respectivas. Si usted requiere de acuerdo al número de trámites copie filas adicionales que estén dentro del cuadro
A65: 3.- Para cada trámite debe seleccionar el canal de atención del trámite en la columna CANAL ATENCIÓN, que pueden ser: El trámite se puede completar totalmente en línea: Se considera trámite totalmente en línea cuando el administrado no requiere realizar ninguna interacción presencial con la institución = 0 El trámite no se puede completar totalmente en línea: Se considera este caso, cuando el trámite incluye al menos una actividad, incluido mecanismos de pago, en la que el administrado deba acudir presencialmente a la institución, para la realización de dicho trámite. Los trámites presenciales se consideran dentro de esta categoría = 10
A66: 4.- De acuerdo a la selección usted obtendrá la puntuación del trámite que se visualizará en la columna PUNTUACIÓN.
A68: f) Resumen
A69: En esta hoja deberá consolidar todas las puntuaciones obtenidas para cada trámite en los criterios a) hasta e). Adicionalmente deberá analizar los criterios adicionales que dispone la norma técnica, para estos últimos solamente deberá seleccionar en la celda correspondiente y la matriz asignará la puntuación adicional. Los criterios que deberá considerar son: - NECESIDADES CIUDADANAS: Si la institución ha implementado mecanismos para identificar necesidades ciudadanas respecto al trámite, seleccionar "SI", caso contrario, seleccionar "NO" - SUSCEPTIBILIDAD A CORRUPCIÓN: Si la institución dispone de información documentada sobre presuntos actos de corrupción, seleccionar "SI", caso contrario, seleccionar "NO" - VOLUMEN DE DEVOLUCIONES: Si la institución posee documentación sobre devoluciones del trámite en una cantidad significativa, seleccionar "SI", caso contrario, seleccionar "NO" Para que funcione la lista depelgable debe arrastrar la lista y la puntuación hacia abajo al último de los támites ingresados, no copiar
A70: En la columna puntaje total se realizará la sumatoria de los valores de los criterios básicos y adicionales. Este valor deberá registrarse en la plataforma GOB.EC

Sheet DEMANDA ANUAL
A1: PRIORIZACIÓN DE TRÁMITES ADMINISTRATIVOS
A2: DEMANDA ANUAL
A4: IDENTIFICADOR | B4: TRÁMITE | C4: DEMANDA ANUAL | D4: PUNTAJE
B5: Inscripcion de Fideicomisos o Negocios Fiduciarios | C5: 1 | D5: 3
B6: Inscripcion de Testamento | C6: 2 | D6: 3
B7: SERVICIO DE FAENAMIENTO | C7: 7 | D7: 3
B8: Inscripción de Donacion de bienes inmuebles | C8: 10 | D8: 3
B9: Inscripción de Posesion Efectiva | C9: 10 | D9: 3
B10: EXONERACIONES | C10: 25 | D10: 3
B11: Inscripción de Hipotecas de bienes inmuebles | C11: 25 | D11: 3
B12: Lotizacion de Predios Rurales | C12: 25 | D12: 3
B13: CONEXION A LA RED DE AGUA POTABLE MUNICIPAL | C13: 26 | D13: 6
B14: SERVICIO DE ALCANTARILLADO SANITARIO | C14: 26 | D14: 6
B15: Emisión de certificado de pertenecer a lotización | C15: 30 | D15: 6
B16: CAMBIO DE NOMBRE EN EL SISTEMA | C16: 31 | D16: 6
B17: SOLICITUD DE BOVEDA CEMENTERIO MUNICIPAL | C17: 38 | D17: 6
B18: Emisión de permiso de uso de suelo | C18: 50 | D18: 6
B19: Emisión de permisos de construcción | C19: 54 | D19: 6
B20: Emisión de aprobación de planos | C20: 65 | D20: 6
B21: Incorporación del predio en el catastro | C21: 75 | D21: 10
B22: Emisión certificado de bienes | C22: 145 | D22: 10
B23: Emisión de patrimonio del GAD Municipal de Déleg | C23: 145 | D23: 10
B24: Emisión de linea de fabrica | C24: 167 | D24: 10
B25: Emisión de certificado de área rural | C25: 184 | D25: 10
B26: Actualizaciones dentro del catastro | C26: 195 | D26: 10
B27: Emisión de certificado de avaluo | C27: 254 | D27: 10
B28: Cambio de nombre dentro del catastro municipal | C28: 275 | D28: 10
B29: Inscripción de Compraventa de Bienes Inmuebles | C29: 300 | D29: 10

Sheet VOLUMEN DE QUEJAS
A1: PRIORIZACIÓN DE TRÁMITES ADMINISTRATIVOS
A2: VOLUMEN DE QUEJAS
A4: IDENTIFICADOR | B4: TRÁMITE | C4: VOLUMEN DEMANDA | D4: VOLUMEN DE QUEJAS | E4: PORCENTAJE | F4: PUNTUACIÓN
B5: Inscripcion de Fideicomisos o Negocios Fiduciarios | C5: 1 | D5: 100 | E5: 10000 | F5: 10
B6: Emisión de certificado de área rural | C6: 184 | D6: 1 | E6: 0.5434782609 | F6: 4
B7: Emisión certificado de bienes | C7: 145 | D7: 0 | E7: 0 | F7: 0
B8: Cambio de nombre dentro del catastro municipal | C8: 275 | D8: 0 | E8: 0 | F8: 0
B9: Incorporación del predio en el catastro | C9: 75 | D9: 0 | E9: 0 | F9: 0
B10: Actualizaciones dentro del catastro | C10: 195 | D10: 0 | E10: 0 | F10: 0
B11: Emisión de aprobación de planos | C11: 65 | D11: 19 | E11: 29.23076923 | F11: 10
B12: Emisión de patrimonio del GAD Municipal de Déleg | C12: 145 | D12: 0 | E12: 0 | F12: 0
B13: Emisión de linea de fabrica | C13: 167 | D13: 50 | E13: 29.94011976 | F13: 10
B14: Emisión de permisos de construcción | C14: 54 | D14: 15 | E14: 27.77777778 | F14: 10
B15: Emisión de permiso de uso de suelo | C15: 50 | D15: 15 | E15: 30 | F15: 10
B16: Emisión de certificado de pertenecer a lotización | C16: 30 | D16: 8 | E16: 26.66666667 | F16: 10
B17: CONEXION A LA RED DE AGUA POTABLE MUNICIPAL | C17: 26 | D17: 26 | E17: 100 | F17: 10
B18: SERVICIO DE ALCANTARILLADO SANITARIO | C18: 30 | D18: 15 | E18: 50 | F18: 10
B19: SOLICITUD DE BOVEDA CEMENTERIO MUNICIPAL | C19: 38 | D19: 0 | E19: 0 | F19: 0
B20: CAMBIO DE NOMBRE EN EL SISTEMA | C20: 31 | D20: 0 | E20: 0 | F20: 0
B21: EXONERACIONES | C21: 25 | D21: 0 | E21: 0 | F21: 0
B22: SERVICIO DE FAENAMIENTO | C22: 7 | D22: 0 | E22: 0 | F22: 0
B23: Inscripcion de Fideicomisos o Negocios Fiduciarios | C23: 1 | D23: 0 | E23: 0 | F23: 0
B24: Inscripcion de Testamento | C24: 2 | D24: 0 | E24: 0 | F24: 0
B25: Inscripción de Donacion de bienes inmuebles | C25: 10 | D25: 0 | E25: 0 | F25: 0
B26: Inscripción de Posesion Efectiva | C26: 10 | D26: 0 | E26: 0 | F26: 0
B27: Inscripción de Hipotecas de bienes inmuebles | C27: 25 | D27: 0 | E27: 0 | F27: 0
B28: Lotizacion de Predios Rurales | C28: 25 | D28: 0 | E28: 0 | F28: 0
B29: Inscripción de Compraventa de Bienes Inmuebles | C29: 300 | D29: 0 | E29: 0 | F29: 0

Sheet COSTO ADMINISTRACIÓN PÚBLICA
A1: PRIORIZACIÓN DE TRÁMITES ADMINISTRATIVOS
A2: COSTOS PARA LA ADMINISTRACIÓN PÚBLICA
A4: IDENTIFICADOR | B4: TRÁMITE | C4: INSUMOS PARA COSTO | F4: COSTO PARA LA ADM. PÚBLICA | H4: SBU | I4: 400 | J4: alcalde | K4: 2250 | L4: =+K4/30 -> 75 | M4: =+L4/8 -> 9.375
C5: TIEMPO (HORAS) | D5: COSTO PERSONAL | E5: COSTO RECURSOS | J5: secretario | K5: 1340 | L5: =+K5/30 -> 44.66666667 | M5: =+L5/8 -> 5.583333333
B6: Inscripcion de Fideicomisos o Negocios Fiduciarios | C6: 26.5 | D6: =C6*$I$4/160 -> 66.25 | E6: 237 | F6: =D6+E6 -> 303.25 | J6: diana | K6: 670 | L6: 22.33333333 | M6: 2.791666667
B7: Emisión de certificado de área rural | C7: 1.5 | D7: =C7*$I$4/160 -> 3.75 | E7: 5 | F7: 8.75 | J7: jefe | K7: 901 | L7: 30.03333333 | M7: 3.754166667
B8: Emisión certificado de bienes | C8: 1.5 | D8: 3.75 | E8: 5 | F8: 8.75 | J8: oficinista | K8: 553 | L8: 18.43333333 | M8: 2.304166667 | O8: =8+2+1.5+3+9 -> 23.5
B9: Cambio de nombre dentro del catastro municipal | C9: 1.5 | D9: 3.75 | E9: 5 | F9: 8.75
B10: Incorporación del predio en el catastro | C10: 1.5 | D10: 3.75 | E10: 5 | F10: 8.75
B11: Actualizaciones dentro del catastro | C11: 1.5 | D11: 3.75 | E11: 5 | F11: 8.75
B12: Emisión de aprobación de planos | C12: 1.35 | D12: 3.375 | E12: 10.15 | F12: 13.525
B13: Emisión de patrimonio del GAD Municipal de Déleg | C13: 1.1 | D13: 2.75 | E13: 5 | F13: 7.75
B14: Emisión de linea de fabrica | C14: 1.9 | D14: 4.75 | E14: 13.06 | F14: 17.81
B15: Emisión de permisos de construcción | C15: 0.5 | D15: 1.25 | E15: 3.5 | F15: 4.75
B16: Emisión de permiso de uso de suelo | C16: 0.8 | D16: 2 | E16: 5.4 | F16: 7.4
B17: Emisión de certificado de pertenecer a lotización | C17: 0.7 | D17: 1.75 | E17: 5.1 | F17: 6.85
B18: CONEXION A LA RED DE AGUA POTABLE MUNICIPAL | C18: 8 | D18: 20 | E18: 75.8 | F18: 95.8
B19: SERVICIO DE ALCANTARILLADO SANITARIO | C19: 8 | D19: 20 | E19: 75.8 | F19: 95.8
B20: SOLICITUD DE BOVEDA CEMENTERIO MUNICIPAL | C20: 3 | D20: 7.5 | E20: 3.78 | F20: 11.28
B21: CAMBIO DE NOMBRE EN EL SISTEMA | C21: 1 | D21: 2.5 | E21: 3.78 | F21: 6.28
B22: EXONERACIONES | C22: 1 | D22: 2.5 | E22: 3.78 | F22: 6.28
B23: SERVICIO DE FAENAMIENTO | C23: 1 | D23: 2.5 | E23: 3.78 | F23: 6.28
B24: Inscripcion de Fideicomisos o Negocios Fiduciarios | C24: 4 | D24: 10 | E24: 6 | F24: 16
B25: Inscripcion de Testamento | C25: 4 | D25: 10 | E25: 6 | F25: 16
B26: Inscripción de Donacion de bienes inmuebles | C26: 4 | D26: 10 | E26: 6 | F26: 16
B27: Inscripción de Posesion Efectiva | C27: 4 | D27: 10 | E27: 6 | F27: 16
B28: Inscripción de Hipotecas de bienes inmuebles | C28: 4 | D28: 10 | E28: 6 | F28: 16
B29: Lotizacion de Predios Rurales | C29: 4 | D29: 10 | E29: 6 | F29: 16
B30: Inscripción de Compraventa de Bienes Inmuebles | C30: 4 | D30: 10 | E30: 6 | F30: 16

Sheet RESUMEN DE COSTOS AP
A1: PRIORIZACIÓN DE TRÁMITES ADMINISTRATIVOS
A2: COSTOS PARA LA ADMINISTRACIÓN PÚBLICA
A4: IDENTIFICADOR | B4: TRÁMITE | C4: COSTO PARA LA ADM. PÚBLICA | D4: PUNTUACIÓN
B5: Emisión de certificado de área rural | C5: 4.75 | D5: 5
B6: Inscripción de Compraventa de Bienes Inmuebles | C6: 6.28 | D6: 5
B7: Inscripción de Donacion de bienes inmuebles | C7: 6.28 | D7: 5
B8: Inscripcion de Fideicomisos o Negocios Fiduciarios | C8: 6.28 | D8: 5
B9: Emisión de certificado de pertenecer a lotización | C9: 6.85 | D9: 5
B10: Incorporación del predio en el catastro | C10: 7.4 | D10: 5
B11: Cambio de nombre dentro del catastro municipal | C11: 7.75 | D11: 5
B12: CAMBIO DE NOMBRE EN EL SISTEMA | C12: 8.75 | D12: 5
B13: Emisión de permisos de construcción | C13: 8.75 | D13: 5
B14: EXONERACIONES | C14: 8.75 | D14: 5
B15: SERVICIO DE FAENAMIENTO | C15: 8.75 | D15: 5
B16: SOLICITUD DE BOVEDA CEMENTERIO MUNICIPAL | C16: 8.75 | D16: 5
B17: Emisión de linea de fabrica | C17: 11.28 | D17: 10
B18: Actualizaciones dentro del catastro | C18: 13.525 | D18: 10
B19: CONEXION A LA RED DE AGUA POTABLE MUNICIPAL | C19: 16 | D19: 10
B20: Inscripcion de Fideicomisos o Negocios Fiduciarios | C20: 16 | D20: 10
B21: Inscripción de Hipotecas de bienes inmuebles | C21: 16 | D21: 10
B22: Inscripción de Posesion Efectiva | C22: 16 | D22: 10
B23: Inscripcion de Testamento | C23: 16 | D23: 10
B24: Lotizacion de Predios Rurales | C24: 16 | D24: 10
B25: SERVICIO DE ALCANTARILLADO SANITARIO | C25: 16 | D25: 10
B26: Emisión certificado de bienes | C26: 17.81 | D26: 20
B27: Emisión de aprobación de planos | C27: 95.8 | D27: 20
B28: Emisión de permiso de uso de suelo | C28: 95.8 | D28: 20
B29: Inscripcion de Fideicomisos o Negocios Fiduciarios | C29: 303.25 | D29: 20

Sheet AUXILIAR COSTO ADMINISTRACIÓN
A2: TRÁMITE: | B2: Emisión de certificado de avaluo | E2: TRÁMITE: | F2: Emisión de certificado de área rural | I2: TRÁMITE: | J2: Cambio de nombre | M2: TRÁMITE: | N2: incorporacion del predio al catastro | Q2: TRÁMITE: | R2: Actualizacion del catastro | U2: TRÁMITE: | V2: Patrimonio
A3: NO. | B3: ACTIVIDAD | C3: TIEMPO (HORAS) | E3: NO. | F3: ACTIVIDAD | G3: TIEMPO (HORAS) | I3: NO. | J3: ACTIVIDAD | K3: TIEMPO (HORAS) | M3: NO. | N3: ACTIVIDAD | O3: TIEMPO (HORAS) | Q3: NO. | R3: ACTIVIDAD | S3: TIEMPO (HORAS) | U3: NO. | V3: ACTIVIDAD | W3: TIEMPO (HORAS)
A4: 1 | B4: Revision de tramite | C4: 0.5 | D4: 1.5 | E4: 1 | F4: Revision de tramite | G4: 0.5 | H4: 1.5 | I4: 1 | J4: Revision de tramite | K4: 0.5 | M4: 1 | N4: Revision de tramite | O4: 0.5 | Q4: 1 | R4: Revision de tramite | S4: 0.5 | U4: 1 | V4: Revision de tramite | W4: 0.5 | X4: 1.5
A5: 2 | B5: pago de tasas administrativas | C5: 0.5 | D5: 1.5 | E5: 2 | F5: pago de tasas administrativas | G5: 0.5 | H5: 1.5 | I5: 2 | J5: pago de tasas administrativas | K5: 0.5 | M5: 2 | N5: pago de tasas administrativas | O5: 0.5 | Q5: 2 | R5: pago de tasas administrativas | S5: 0.5 | U5: 2 | V5: pago de tasas administrativas | W5: 0.5 | X5: 1.5
A6: 3 | B6: emision del informe | C6: 0.5 | D6: 2 | E6: 3 | F6: Emision del certificado | G6: 0.5 | H6: 2 | I6: 3 | J6: Ingreso al sistema | K6: 0.5 | M6: 3 | N6: Ingreso al catastro | O6: 0.5 | Q6: 3 | R6: Emision del certificado | S6: 0.5 | U6: 3 | V6: Emision del certificado | W6: 0.1 | X6: 2
A7: 4 | B7: repecion secretaria | C7: 0.5 | D7: 3 | E7: 4 | H7: =SUM(H4:H6) -> 5 | I7: 4 | M7: 4 | Q7: 4 | U7: 4
A8: 5 | B8: autorizacion del alcalde | C8: 24 | D8: =75*3 -> 225 | E8: 5 | I8: 5 | M8: 5 | Q8: 5 | U8: 5 | X8: =SUM(X4:X7) -> 5
A9: 6 | B9: emision del certificado de avaluo | C9: 0.5 | D9: 4 | E9: 6 | I9: 6 | M9: 6 | Q9: 6 | U9: 6
A10: 7 | D10: =SUM(D4:D9) -> 237 | E10: 7 | I10: 7 | M10: 7 | Q10: 7 | U10: 7
A11: 8 | E11: 8 | I11: 8 | M11: 8 | Q11: 8 | U11: 8
A12: 9 | E12: 9 | I12: 9 | M12: 9 | Q12: 9 | U12: 9
A13: 10 | E13: 10 | I13: 10 | M13: 10 | Q13: 10 | U13: 10
A14: 11 | E14: 11 | I14: 11 | M14: 11 | Q14: 11 | U14: 11
A15: 12 | E15: 12 | I15: 12 | M15: 12 | Q15: 12 | U15: 12
A16: 13 | E16: 13 | I16: 13 | M16: 13 | Q16: 13 | U16: 13
A17: 14 | E17: 14 | I17: 14 | M17: 14 | Q17: 14 | U17: 14
A18: 15 | E18: 15 | I18: 15 | M18: 15 | Q18: 15 | U18: 15
B20: SUMATORIA ACTIVIDADES | C20: =SUM(C4:C19) -> 26.5 | F20: SUMATORIA ACTIVIDADES | G20: =SUM(G4:G19) -> 1.5 | J20: SUMATORIA ACTIVIDADES | K20: =SUM(K4:K19) -> 1.5 | N20: SUMATORIA ACTIVIDADES | O20: =SUM(O4:O19) -> 1.5 | R20: SUMATORIA ACTIVIDADES | S20: =SUM(S4:S19) -> 1.5 | V20: SUMATORIA ACTIVIDADES | W20: =SUM(W4:W19) -> 1.1
A23: TRÁMITE: | B23: Aprobación de planos | E23: TRÁMITE: | F23: Emisión de línea de fabrica | I23: TRÁMITE: | J23: Emisión de permisos de construcción | M23: TRÁMITE: | N23: Emisión de uso de suelo | Q23: TRÁMITE: | R23: Emisión de certificado de pertenecer a lotización
A24: NO. | B24: ACTIVIDAD | C24: TIEMPO (HORAS) | E24: NO. | F24: ACTIVIDAD | G24: TIEMPO (HORAS) | I24: NO. | J24: ACTIVIDAD | K24: TIEMPO (HORAS) | M24: NO. | N24: ACTIVIDAD | O24: TIEMPO (HORAS) | Q24: NO. | R24: ACTIVIDAD | S24: TIEMPO (HORAS)
A25: 1 | B25: revision de planos | C25: 0.25 | D25: 1.65 | E25: 1 | F25: Revisión de documentos | G25: 0.15 | H25: 1.25 | I25: 1 | J25: Revisión de documentos | K25: 0.1 | L25: 1 | M25: 1 | N25: Revision de documentos | O25: 0.1 | P25: 1 | Q25: 1 | R25: Revision de documentos | S25: 0.1 | T25: 1
A26: 2 | B26: elaboracion de informe correccion de observaciones | C26: 0.2 | D26: 1.6 | E26: 2 | F26: Agenda de inspección | G26: 0.1 | H26: 1 | I26: 2 | J26: pago de tasas administrativas | K26: 0.3 | L26: 1.5 | M26: 2 | N26: Revision de zonificacion | O26: 0.25 | P26: 1.65 | Q26: 2 | R26: Revision de zonificacion | S26: 0.2 | T26: 1.6
A27: 3 | B27: devolucion de tramite | C27: 0.1 | D27: 1 | E27: 3 | F27: Inspeccion de predio | G27: 1 | H27: 6.66 | I27: 3 | J27: Entrega de permiso | K27: 0.1 | L27: 1 | M27: 3 | N27: Elaboracion de uso de suelo | O27: 0.15 | P27: 1.25 | Q27: 3 | R27: Elaboracion de uso de suelo | S27: 0.1 | T27: 1
A28: 4 | B28: reingreso | C28: 0.25 | D28: 1.65 | E28: 4 | F28: Elaboración del informe | G28: 0.25 | H28: 1.65 | I28: 4 | M28: 4 | N28: pago de las tasas administrativas | O28: 0.3 | P28: 1.5 | Q28: 4 | R28: pago de las tasas administrativas | S28: 0.3 | T28: 1.5
A29: 5 | B29: aprobacion | C29: 0.25 | D29: 1.65 | E29: 5 | F29: pago tasa adminsitrativa | G29: 0.3 | H29: 1.5 | I29: 5 | M29: 5 | Q29: 5
A30: 6 | B30: pago de tasas administrativas | C30: 0.1 | D30: 1 | E30: 6 | F30: Entrega de trámite | G30: 0.1 | H30: 1 | I30: 6 | L30: =SUM(L25:L29) -> 3.5 | M30: 6 | Q30: 6
A31: 7 | B31: emision de planos | C31: 0.2 | D31: 1.6 | E31: 7 | I31: 7 | M31: 7 | Q31: 7 | T31: =SUM(T25:T30) -> 5.1
A32: 8 | E32: 8 | H32: =SUM(H25:H31) -> 13.06 | I32: 8 | M32: 8 | P32: =SUM(P25:P31) -> 5.4 | Q32: 8
A33: 9 | D33: =SUM(D25:D32) -> 10.15 | E33: 9 | I33: 9 | M33: 9 | Q33: 9
A34: 10 | E34: 10 | I34: 10 | M34: 10 | Q34: 10
A35: 11 | E35: 11 | I35: 11 | M35: 11 | Q35: 11
A36: 12 | E36: 12 | I36: 12 | M36: 12 | Q36: 12
A37: 13 | E37: 13 | I37: 13 | M37: 13 | Q37: 13
A38: 14 | E38: 14 | I38: 14 | M38: 14 | Q38: 14
A39: 15 | E39: 15 | I39: 15 | M39: 15 | Q39: 15
B41: SUMATORIA ACTIVIDADES | C41: =SUM(C25:C40) -> 1.35 | F41: SUMATORIA ACTIVIDADES | G41: =SUM(G25:G40) -> 1.9 | J41: SUMATORIA ACTIVIDADES | K41: =SUM(K25:K40) -> 0.5 | N41: SUMATORIA ACTIVIDADES | O41: =SUM(O25:O40) -> 0.8 | R41: SUMATORIA ACTIVIDADES | S41: =SUM(S25:S40) -> 0.7
C48: =1600/30 -> 53.33333333 | D48: =+C48/8 -> 6.666666667 | E48: =+D48/4 -> 1.666666667

Sheet TIEMPO DE RESPUESTA
A1: PRIORIZACIÓN DE TRÁMITES ADMINISTRATIVOS
A2: TIEMPO DE RESPUESTA
A4: IDENTIFICADOR | B4: TRÁMITE | C4: TIEMPO RESPUESTA (horas laborables) | D4: PUNTUACIÓN
B5: Inscripcion de Fideicomisos o Negocios Fiduciarios | C5: 67 | D5: 30
B6: Emisión de certificado de área rural | C6: 1.5 | D6: 0
B7: Emisión certificado de bienes | C7: 1.5 | D7: 0
B8: Cambio de nombre dentro del catastro municipal | C8: 1.5 | D8: 0
B9: Incorporación del predio en el catastro | C9: 1.5 | D9: 0
B10: Actualizaciones dentro del catastro | C10: 1.5 | D10: 0
B11: Emisión de aprobación de planos | C11: 1.35 | D11: 0
B12: Emisión de patrimonio del GAD Municipal de Déleg | C12: 1.1 | D12: 0
B13: Emisión de linea de fabrica | C13: 1.9 | D13: 0
B14: Emisión de permisos de construcción | C14: 0.5 | D14: 0
B15: Emisión de permiso de uso de suelo | C15: 0.8 | D15: 0
B16: Emisión de certificado de pertenecer a lotización | C16: 0.7 | D16: 0
B17: CONEXION A LA RED DE AGUA POTABLE MUNICIPAL | C17: 8 | D17: 0
B18: SERVICIO DE ALCANTARILLADO SANITARIO | C18: 8 | D18: 0
B19: SOLICITUD DE BOVEDA CEMENTERIO MUNICIPAL | C19: 3 | D19: 0
B20: CAMBIO DE NOMBRE EN EL SISTEMA | C20: 1 | D20: 0
B21: EXONERACIONES | C21: 1 | D21: 0
B22: SERVICIO DE FAENAMIENTO | C22: 1 | D22: 0
B23: CONEXION A LA RED DE AGUA POTABLE MUNICIPAL | C23: 8 | D23: 0
B24: SERVICIO DE ALCANTARILLADO SANITARIO | C24: 8 | D24: 0
B25: SOLICITUD DE BOVEDA CEMENTERIO MUNICIPAL | C25: 3 | D25: 0
B26: CAMBIO DE NOMBRE EN EL SISTEMA | C26: 1 | D26: 0
B27: EXONERACIONES | C27: 1 | D27: 0
B28: SERVICIO DE FAENAMIENTO | C28: 1 | D28: 0
B29: Inscripcion de Fideicomisos o Negocios Fiduciarios | C29: 64 | D29: 30
B30: Inscripcion de Testamento | C30: 64 | D30: 30
B31: Inscripción de Donacion de bienes inmuebles | C31: 64 | D31: 30
B32: Inscripción de Posesion Efectiva | C32: 64 | D32: 30
B33: Inscripción de Hipotecas de bienes inmuebles | C33: 64 | D33: 30
B34: Lotizacion de Predios Rurales | C34: 64 | D34: 30
B35: Inscripción de Compraventa de Bienes Inmuebles | C35: 64 | D35: 30

Sheet CANAL ATENCIÓN
A1: PRIORIZACIÓN DE TRÁMITES ADMINISTRATIVOS
A2: CANAL DE ATENCIÓN
I3: Totalmente en Línea | L3: 0
A4: IDENTIFICADOR | B4: TRÁMITE | C4: CANAL ATENCIÓN | D4: PUNTUACIÓN | I4: No se completa totalmente en línea. | L4: 10
B5: Inscripcion de Fideicomisos o Negocios Fiduciarios | C5: No se completa totalmente en línea. | D5: =IF(ISBLANK(C5),"",IF(C5="Totalmente en línea",0,IF(C5="Inicia en línea",6,10))) -> 10
B6: Emisión de certificado de área rural | C6: No se completa totalmente en línea. | D6: =IF(ISBLANK(C6),"",IF(C6="Totalmente en línea",0,IF(C6="Inicia en línea",6,10))) -> 10
B7: Emisión certificado de bienes | C7: No se completa totalmente en línea. | D7: 10
B8: Cambio de nombre dentro del catastro municipal | C8: No se completa totalmente en línea. | D8: 10
B9: Incorporación del predio en el catastro | C9: No se completa totalmente en línea. | D9: 10
B10: Actualizaciones dentro del catastro | C10: No se completa totalmente en línea. | D10: 10
B11: Emisión de aprobación de planos | C11: No se completa totalmente en línea. | D11: 10
B12: Emisión de patrimonio del GAD Municipal de Déleg | C12: No se completa totalmente en línea. | D12: 10
B13: Emisión de linea de fabrica | C13: No se completa totalmente en línea. | D13: 10
B14: Emisión de permisos de construcción | C14: No se completa totalmente en línea. | D14: 10
B15: Emisión de permiso de uso de suelo | C15: No se completa totalmente en línea. | D15: 10
B16: Emisión de certificado de pertenecer a lotización | C16: No se completa totalmente en línea. | D16: 10
B17: CONEXION A LA RED DE AGUA POTABLE MUNICIPAL | C17: No se completa totalmente en línea. | D17: 10
B18: SERVICIO DE ALCANTARILLADO SANITARIO | C18: No se completa totalmente en línea. | D18: 10
B19: SOLICITUD DE BOVEDA CEMENTERIO MUNICIPAL | C19: No se completa totalmente en línea. | D19: 10
B20: CAMBIO DE NOMBRE EN EL SISTEMA | C20: No se completa totalmente en línea. | D20: 10
B21: EXONERACIONES | C21: No se completa totalmente en línea. | D21: 10
B22: SERVICIO DE FAENAMIENTO | C22: No se completa totalmente en línea. | D22: 10
B23: Inscripcion de Fideicomisos o Negocios Fiduciarios | C23: No se completa totalmente en línea. | D23: 10
B24: Inscripcion de Testamento | C24: No se completa totalmente en línea. | D24: 10
B25: Inscripción de Donacion de bienes inmuebles | C25: No se completa totalmente en línea. | D25: 10
B26: Inscripción de Posesion Efectiva | C26: No se completa totalmente en línea. | D26: 10
B27: Inscripción de Hipotecas de bienes inmuebles | C27: No se completa totalmente en línea. | D27: 10
B28: Lotizacion de Predios Rurales | C28: No se completa totalmente en línea. | D28: 10
B29: Inscripción de Compraventa de Bienes Inmuebles | C29: No se completa totalmente en línea. | D29: 10

Sheet RESUMEN
C1: BÁSICOS | H1: ADICIONALES
A2: ID trámite | B2: Nombre del trámite | C2: Demanda | D2: Quejas | E2: Costo para administración | F2: Tiempo de respuesta | G2: Canal de atención | H2: Necesidades ciudadanas | J2: Susceptibilidad a corrupción | L2: Volumen de devoluciones | N2: PUNTAJE TOTAL
H3: Criterio | I3: Puntuación | J3: Criterio | K3: Puntuación | L3: Criterio | M3: Puntuación | U3: demanda | V3: 0 | W3: 3 | X3: 6 | Y3: 10
B4: Inscripcion de Fideicomisos o Negocios Fiduciarios | C4: 3 | D4: 10 | E4: 5 | F4: 30 | G4: 10 | H4: NO | I4: =IF(H4="SI",5,0) -> 0 | J4: NO | K4: =IF(J4="SI",10,0) -> 0 | L4: NO | M4: =IF(L4="SI",5,0) -> 0 | N4: =SUM(C4:G4,I4,K4,M4) -> 58 | U4: quejas | V4: 0 | W4: 4 | X4: 10
B5: Emisión de certificado de área rural | C5: 3 | D5: 4 | E5: 5 | F5: 0 | G5: 10 | H5: NO | I5: =IF(H5="SI",5,0) -> 0 | J5: NO | K5: =IF(J5="SI",10,0) -> 0 | L5: NO | M5: =IF(L5="SI",5,0) -> 0 | N5: =SUM(C5:G5,I5,K5,M5) -> 22 | U5: cpa | V5: 5 | W5: 10 | X5: 20
B6: Emisión certificado de bienes | C6: 3 | D6: 0 | E6: 5 | F6: 0 | G6: 10 | H6: NO | I6: 0 | J6: NO | K6: 0 | L6: NO | M6: 0 | N6: 18 | U6: tr | V6: 0 | W6: 30
B7: Cambio de nombre dentro del catastro municipal | C7: 3 | D7: 0 | E7: 5 | F7: 0 | G7: 10 | H7: NO | I7: 0 | J7: NO | K7: 0 | L7: NO | M7: 0 | N7: 18 | U7: ca | V7: 0 | W7: 10
B8: Incorporación del predio en el catastro | C8: 3 | D8: 0 | E8: 5 | F8: 0 | G8: 10 | H8: NO | I8: 0 | J8: NO | K8: 0 | L8: NO | M8: 0 | N8: 18 | V8: SI | W8: NO
B9: Actualizaciones dentro del catastro | C9: 3 | D9: 0 | E9: 5 | F9: 0 | G9: 10 | H9: NO | I9: 0 | J9: NO | K9: 0 | L9: NO | M9: 0 | N9: 18
B10: Emisión de aprobación de planos | C10: 3 | D10: 10 | E10: 5 | F10: 0 | G10: 10 | H10: NO | I10: 0 | J10: NO | K10: 0 | L10: NO | M10: 0 | N10: 28
B11: Emisión de patrimonio del GAD Municipal de Déleg | C11: 3 | D11: 0 | E11: 5 | F11: 0 | G11: 10 | H11: NO | I11: 0 | J11: NO | K11: 0 | L11: NO | M11: 0 | N11: 18
B12: Emisión de linea de fabrica | C12: 6 | D12: 10 | E12: 5 | F12: 0 | G12: 10 | H12: NO | I12: 0 | J12: NO | K12: 0 | L12: NO | M12: 0 | N12: 31
B13: Emisión de permisos de construcción | C13: 6 | D13: 10 | E13: 5 | F13: 0 | G13: 10 | H13: NO | I13: 0 | J13: NO | K13: 0 | L13: NO | M13: 0 | N13: 31
B14: Emisión de permiso de uso de suelo | C14: 6 | D14: 10 | E14: 5 | F14: 0 | G14: 10 | H14: NO | I14: 0 | J14: NO | K14: 0 | L14: NO | M14: 0 | N14: 31
B15: Emisión de certificado de pertenecer a lotización | C15: 6 | D15: 10 | E15: 5 | F15: 0 | G15: 10 | H15: NO | I15: 0 | J15: NO | K15: 0 | L15: NO | M15: 0 | N15: 31
B16: CONEXION A LA RED DE AGUA POTABLE MUNICIPAL | C16: 6 | D16: 10 | E16: 10 | F16: 0 | G16: 10 | H16: NO | I16: 0 | J16: NO | K16: 0 | L16: NO | M16: 0 | N16: 36
B17: SERVICIO DE ALCANTARILLADO SANITARIO | C17: 6 | D17: 10 | E17: 10 | F17: 0 | G17: 10 | H17: NO | I17: 0 | J17: NO | K17: 0 | L17: NO | M17: 0 | N17: 36
B18: SOLICITUD DE BOVEDA CEMENTERIO MUNICIPAL | C18: 6 | D18: 0 | E18: 10 | F18: 0 | G18: 10 | H18: NO | I18: 0 | J18: NO | K18: 0 | L18: NO | M18: 0 | N18: 26
B19: CAMBIO DE NOMBRE EN EL SISTEMA | C19: 6 | D19: 0 | E19: 10 | F19: 0 | G19: 10 | H19: NO | I19: 0 | J19: NO | K19: 0 | L19: NO | M19: 0 | N19: 26
B20: EXONERACIONES | C20: 10 | D20: 0 | E20: 10 | F20: 0 | G20: 10 | H20: NO | I20: 0 | J20: NO | K20: 0 | L20: NO | M20: 0 | N20: 30
B21: SERVICIO DE FAENAMIENTO | C21: 10 | D21: 0 | E21: 10 | F21: 0 | G21: 10 | H21: NO | I21: 0 | J21: NO | K21: 0 | L21: NO | M21: 0 | N21: 30
B22: Inscripcion de Fideicomisos o Negocios Fiduciarios | C22: 10 | D22: 0 | E22: 10 | F22: 0 | G22: 10 | H22: NO | I22: 0 | J22: NO | K22: 0 | L22: NO | M22: 0 | N22: 30
B23: Inscripcion de Testamento | C23: 10 | D23: 0 | E23: 10 | F23: 0 | G23: 10 | H23: NO | I23: 0 | J23: NO | K23: 0 | L23: NO | M23: 0 | N23: 30
B24: Inscripción de Donacion de bienes inmuebles | C24: 10 | D24: 0 | E24: 10 | F24: 0 | G24: 10 | H24: NO | I24: 0 | J24: NO | K24: 0 | L24: NO | M24: 0 | N24: 30
B25: Inscripción de Posesion Efectiva | C25: 10 | D25: 0 | E25: 20 | F25: 0 | G25: 10 | H25: NO | I25: 0 | J25: NO | K25: 0 | L25: NO | M25: 0 | N25: 40
B26: Inscripción de Hipotecas de bienes inmuebles | C26: 10 | D26: 0 | E26: 20 | F26: 0 | G26: 10 | H26: NO | I26: 0 | J26: NO | K26: 0 | L26: NO | M26: 0 | N26: 40
B27: Lotizacion de Predios Rurales | C27: 10 | D27: 0 | E27: 20 | F27: 0 | G27: 10 | H27: NO | I27: 0 | J27: NO | K27: 0 | L27: NO | M27: 0 | N27: 40
B28: Inscripción de Compraventa de Bienes Inmuebles | C28: 10 | D28: 0 | E28: 20 | F28: 30 | G28: 10 | H28: NO | I28: 0 | J28: NO | K28: 0 | L28: NO | M28: 0 | N28: 70
F29: 30
F30: 30
F31: 30
F32: 30
F33: 30
F34: 30
